fUST/lending_fUST_20251130
["ID","MTS","AMOUNT","RATE_DAILY","PERIOD"]
[395164739,1764503139093,-392.00868098,7.187e-05,2]
[395164740,1764503141016,-217.0,7.187e-05,2]
[395164741,1764503144856,-251.2320947,7.115e-05,2]
[395164742,1764503144878,-34.2320947,7.187e-05,2]
[395164743,1764503144899,-65.17074293,7.565e-05,2]
[395164744,1764503149889,-39.98939139,7.565e-05,2]
[395164745,1764503153103,-1374.48591583,7.914e-05,2]
[395164758,1764503179483,-2898.23566402,7.757e-05,2]
[395164759,1764503179516,-4203.53867196,7.835e-05,2]
[395164768,1764503202019,-569.54394603,7.757e-05,2]
[395164770,1764503204413,-219.93553827,7.757e-05,2]
[395164771,1764503206587,-500.0,7.757e-05,2]
[395164776,1764503216532,377.39251322,7.708e-05,2]
[395164778,1764503218535,679.3065238,7.708e-05,2]
[395164785,1764503232609,-33.19060992,7.757e-05,2]
[395164786,1764503232638,-712.65240255,7.835e-05,2]
[395164787,1764503232703,-7451.62493804,7.835e-05,2]
[395164788,1764503232814,3938.425477,6.942e-05,2]
[395164789,1764503233017,-1056.69903702,7.835e-05,2]
[395164790,1764503233044,-300.0,7.912e-05,2]
[395164791,1764503233071,-168.02167834,7.913e-05,2]
[395164792,1764503233099,-628.24960582,7.913e-05,2]
[395164793,1764503233128,-500.0,7.913e-05,2]
[395164794,1764503233157,-256.47816119,7.913e-05,2]
[395164795,1764503233191,-500.0,7.913e-05,2]
[395164796,1764503233219,-500.0,7.913e-05,2]
[395164797,1764503233247,-500.0,7.913e-05,2]
[395164798,1764503233275,-500.0,7.913e-05,2]
[395164799,1764503249084,-541.11046723,7.913e-05,2]
[395164800,1764503249104,-280.04440477,7.913e-05,2]
[395164801,1764503249124,-84.17946904,7.913e-05,2]
[395164802,1764503249404,-205.30001526,7.913e-05,2]
[395164803,1764503249432,-500.0,7.913e-05,2]
[395164804,1764503249460,-500.0,7.913e-05,2]
[395164805,1764503249492,-480.0,7.913e-05,2]
[395164806,1764503249520,-500.0,7.913e-05,2]
[395164807,1764503249549,-500.0,7.913e-05,2]
[395164808,1764503249576,-350.81953141,7.913e-05,2]
[395164809,1764503249602,-500.0,7.913e-05,2]
[395164810,1764503249631,-210.5205157,7.913e-05,2]
[395164811,1764503249663,-500.0,7.913e-05,2]
[395164812,1764503249693,-545.91251162,7.913e-05,2]
[395164813,1764503250339,-6686.57940491,7.914e-05,2]
[395164814,1764503250391,-10000.01,7.914e-05,2]
[395164815,1764503266848,-4805.13468988,7.835e-05,2]
[395164816,1764503266883,-389.74062024,7.913e-05,2]
[395164823,1764503293843,-1200.0,7.912e-05,2]
[395164824,1764503293876,-300.0,7.912e-05,2]
[395164825,1764503293904,-110.25937976,7.913e-05,2]
[395164826,1764503293932,-500.0,7.913e-05,2]
[395164827,1764503293960,-500.0,7.913e-05,2]
[395164828,1764503293988,-500.0,7.913e-05,2]
[395164829,1764503294018,-500.0,7.913e-05,2]
[395164830,1764503294046,-569.991,7.913e-05,2]
[395164831,1764503294074,-430.009,7.913e-05,2]
[395164832,1764503294105,-279.49124048,7.913e-05,2]
[395164833,1764503294489,-220.50875952,7.913e-05,2]
[395164834,1764503306074,-870.55331644,7.813e-05,2]
[395164835,1764503306103,-500.0,7.913e-05,2]
[395164836,1764503306130,-500.0,7.913e-05,2]
[395164837,1764503306158,-500.0,7.913e-05,2]
[395164838,1764503306185,-500.0,7.913e-05,2]
[395164839,1764503306212,-350.45148246,7.913e-05,2]
[395164840,1764503306239,-500.0,7.913e-05,2]
[395164841,1764503306266,-500.0,7.913e-05,2]
[395164842,1764503306293,-439.45941917,7.913e-05,2]
[395164843,1764503306321,-179.08156386,7.913e-05,2]
[395164844,1764503306486,-320.91843614,7.913e-05,2]
[395164852,1764503342710,377.26051167,7.708e-05,2]
[395164853,1764503343496,-166.5993798,7.756e-05,2]
[395164854,1764503343517,-29.2568346,7.813e-05,2]
[395164855,1764503345218,679.06892101,7.708e-05,2]
[395164856,1764503347714,-270.7431654,7.813e-05,2]
[395164857,1764503347777,-8402.19423652,7.814e-05,2]
[395164858,1764503347818,1207.23363735,7.708e-05,2]
[395164859,1764503347931,-8792.77636265,7.814e-05,2]
[395164860,1764503348032,-10000.01,7.814e-05,2]
[395164862,1764503360272,-1886.30255835,7.708e-05,2]
[395164863,1764503360302,-2716.27568403,7.708e-05,2]
[395164864,1764503360352,-794.85351524,7.814e-05,2]
[395164865,1764503360429,-10000.01,7.814e-05,2]
[395164866,1764503360594,-10000.01,7.814e-05,2]
[395164867,1764503376154,-2737.13428116,7.555e-05,2]
[395164868,1764503377071,-265.11705708,7.631e-05,2]
[395164869,1764503379895,-444.94808583,7.631e-05,2]
[395164872,1764503381863,-218.3673483,7.631e-05,2]
[395164873,1764503384528,-362.82891341,7.631e-05,2]
[395164874,1764503388384,-391.22806979,7.631e-05,2]
[395164875,1764503391989,-2920.08876797,7.631e-05,2]
[395164876,1764503394228,408.71259583,7.555e-05,2]
[395164877,1764503394249,2511.37617214,7.555e-05,2]
[395164883,1764503411293,-504.48022156,7.735e-05,2]
[395164884,1764503413959,-287.88293602,7.735e-05,2]
[395164885,1764503417675,623.63684242,7.658e-05,2]
[395164886,1764503418331,-239.21321851,7.735e-05,2]
[395164887,1764503419873,-218.68026489,7.735e-05,2]
[395164900,1764503432079,-165.74335902,7.735e-05,2]
[395164901,1764503432088,-300.0,7.813e-05,2]
[395164902,1764503432098,-300.0,7.813e-05,2]
[395164903,1764503432108,-300.0,7.813e-05,2]
[395164904,1764503432117,-300.0,7.813e-05,2]
[395164905,1764503432127,-54.45664098,7.813e-05,2]
[395164929,1764503438329,-161.54335902,7.813e-05,2]
[395164930,1764503438339,-490.86297259,7.813e-05,2]
[395164931,1764503438350,-416.67751644,7.813e-05,2]
[395164932,1764503438362,-292.45951097,7.813e-05,2]
[395164933,1764503438372,-107.25632011,7.814e-05,2]
[395164941,1764503440544,-2e-08,7.814e-05,2]
[395164942,1764503440556,-82538.35591461,7.814e-05,2]
[395164943,1764503440565,-166.5993798,7.834e-05,2]
[395164944,1764503440575,-3697.15301437,7.868e-05,2]
[395164945,1764503440584,-500.0,7.913e-05,2]
[395164946,1764503440593,-500.0,7.913e-05,2]
[395164947,1764503440602,-500.0,7.913e-05,2]
[395164948,1764503440611,-574.09703507,7.913e-05,2]
[395164949,1764503440621,-500.0,7.913e-05,2]
[395164950,1764503440630,-500.0,7.913e-05,2]
[395164951,1764503440639,-500.0,7.913e-05,2]
[395164952,1764503440648,-500.0,7.913e-05,2]
[395164953,1764503440657,-500.0,7.913e-05,2]
[395164954,1764503440666,-500.0,7.913e-05,2]
[395164955,1764503440675,-500.0,7.913e-05,2]
[395164956,1764503440684,-500.0,7.913e-05,2]
[395164957,1764503440694,-500.0,7.913e-05,2]
[395164958,1764503440704,-500.0,7.913e-05,2]
[395164959,1764503440713,-500.0,7.913e-05,2]
[395164960,1764503440722,-500.0,7.913e-05,2]
[395164961,1764503440731,-500.0,7.913e-05,2]
[395164962,1764503440740,-500.0,7.913e-05,2]
[395164963,1764503440750,-500.0,7.913e-05,2]
[395164964,1764503440760,-500.0,7.913e-05,2]
[395164965,1764503440769,-500.0,7.913e-05,2]
[395164966,1764503440778,-500.0,7.913e-05,2]
[395164967,1764503440787,-500.0,7.913e-05,2]
[395164968,1764503440797,-500.0,7.913e-05,2]
[395164969,1764503440806,-500.0,7.913e-05,2]
[395164970,1764503440815,-500.0,7.913e-05,2]
[395164971,1764503440825,-500.0,7.913e-05,2]
[395164972,1764503440834,-500.0,7.913e-05,2]
[395164973,1764503440843,-500.0,7.913e-05,2]
[395164974,1764503440853,-500.0,7.913e-05,2]
[395164975,1764503440862,-500.0,7.913e-05,2]
[395164976,1764503440871,-500.0,7.913e-05,2]
[395164977,1764503440881,-500.0,7.913e-05,2]
[395164978,1764503440891,-500.0,7.913e-05,2]
[395164979,1764503440900,-500.0,7.913e-05,2]
[395164980,1764503440909,-500.0,7.913e-05,2]
[395164981,1764503440919,-500.0,7.913e-05,2]
[395164982,1764503440928,-279.03538353,7.913e-05,2]
[395164983,1764503440938,-500.0,7.913e-05,2]
[395164984,1764503440948,-500.0,7.913e-05,2]
[395164985,1764503440957,-500.0,7.913e-05,2]
[395164986,1764503440966,-500.0,7.913e-05,2]
[395164987,1764503440975,-500.0,7.913e-05,2]
[395164988,1764503440984,-500.0,7.913e-05,2]
[395164989,1764503440993,-500.0,7.913e-05,2]
[395164991,1764503441002,-500.0,7.913e-05,2]
[395164992,1764503441011,-500.0,7.913e-05,2]
[395164993,1764503441021,-500.0,7.913e-05,2]
[395164994,1764503441030,-500.0,7.913e-05,2]
[395164995,1764503441040,-500.0,7.913e-05,2]
[395164996,1764503441049,-500.0,7.913e-05,2]
[395164997,1764503441058,-500.0,7.913e-05,2]
[395164998,1764503441067,-500.0,7.913e-05,2]
[395164999,1764503441076,-500.0,7.913e-05,2]
[395165000,1764503441085,-500.0,7.913e-05,2]
[395165001,1764503441093,-500.0,7.913e-05,2]
[395165002,1764503441102,-500.0,7.913e-05,2]
[395165003,1764503441112,-500.0,7.913e-05,2]
[395165004,1764503441121,-500.0,7.913e-05,2]
[395165005,1764503441131,-500.0,7.913e-05,2]
[395165006,1764503441142,-500.0,7.913e-05,2]
[395165007,1764503441152,-500.0,7.913e-05,2]
[395165008,1764503441163,-500.0,7.913e-05,2]
[395165009,1764503441173,-500.0,7.913e-05,2]
[395165010,1764503441182,-500.0,7.913e-05,2]
[395165011,1764503441191,-500.0,7.913e-05,2]
[395165012,1764503441200,-500.0,7.913e-05,2]
[395165013,1764503441209,-500.0,7.913e-05,2]
[395165014,1764503441219,-602.38712403,7.913e-05,2]
[395165015,1764503441229,-500.0,7.913e-05,2]
[395165016,1764503441238,-500.0,7.913e-05,2]
[395165017,1764503441248,-500.0,7.913e-05,2]
[395165018,1764503441259,-500.0,7.913e-05,2]
[395165019,1764503441268,-500.0,7.913e-05,2]
[395165020,1764503441278,-500.0,7.913e-05,2]
[395165021,1764503441286,-450.76778786,7.913e-05,2]
[395165022,1764503441295,-195.8562144,7.913e-05,2]
[395165023,1764503441303,-175.146275,7.963e-05,2]
[395165024,1764503441313,-500.0,7.963e-05,2]
[395165025,1764503441322,-23631.6163916,7.977e-05,2]
[395165026,1764503441331,-1207.65604232,8.01e-05,2]
[395165027,1764503441341,-553.028,8.024e-05,2]
[395165028,1764503441351,-202.13520651,8.04e-05,2]
[395165029,1764503441360,-4828.93454939,8.059e-05,2]
[395165030,1764503441369,-631.0,8.186e-05,2]
[395165031,1764503441379,-2154.0,8.186e-05,2]
[395165032,1764503441388,-990.0,8.186e-05,2]
[395165033,1764503441398,-500.0,8.219e-05,2]
[395165034,1764503441408,-553.36092246,8.219e-05,2]
[395165035,1764503441418,-500.0,8.219e-05,2]
[395165036,1764503441428,-339.3474309,8.22e-05,2]
[395165037,1764503441437,-6111.62028907,8.25e-05,2]
[395165038,1764503441447,-662.0,8.307e-05,2]
[395165039,1764503441460,-151.0,8.307e-05,2]
[395165040,1764503441470,-500.0,8.319e-05,2]
[395165041,1764503441479,-177.24754065,8.319e-05,2]
[395165042,1764503441489,-478.75725327,8.319e-05,2]
[395165043,1764503441498,-500.0,8.319e-05,2]
[395165044,1764503441508,-500.0,8.319e-05,2]
[395165045,1764503441517,-231.28369723,8.319e-05,2]
[395165046,1764503441527,-500.0,8.319e-05,2]
[395165047,1764503441536,-500.0,8.319e-05,2]
[395165048,1764503441545,-500.0,8.319e-05,2]
[395165049,1764503441554,-500.0,8.319e-05,2]
[395165050,1764503441563,-500.0,8.319e-05,2]
[395165051,1764503441572,-500.0,8.319e-05,2]
[395165052,1764503441582,-500.0,8.319e-05,2]
[395165053,1764503441590,-500.0,8.319e-05,2]
[395165054,1764503441599,-500.0,8.319e-05,2]
[395165055,1764503441609,-500.0,8.319e-05,2]
[395165056,1764503441618,-500.0,8.319e-05,2]
[395165057,1764503441627,-500.0,8.319e-05,2]
[395165058,1764503441636,-500.0,8.319e-05,2]
[395165059,1764503441645,-174.61919141,8.319e-05,2]
[395165060,1764503441655,-5201.043598,8.323e-05,2]
[395165066,1764503443274,-1030.40296552,7.736e-05,2]
[395165067,1764503443384,-300.0,7.736e-05,2]
[395165068,1764503443395,-892.72318,7.736e-05,2]
[395165069,1764503443406,-3399.79718181,7.736e-05,2]
[395165070,1764503443416,-5720.20281819,8.323e-05,2]
[395165074,1764503446371,-541.32294273,7.824e-05,2]
[395165075,1764503446380,-833.32447971,8.323e-05,2]
[395165076,1764503446392,-6071.99999998,8.323e-05,2]
[395168053,1764503491578,10000.01,7.35e-05,2]
[395168054,1764503491597,10000.01,7.35e-05,2]
[395168055,1764503491617,10000.01,7.35e-05,2]
[395168067,1764503642854,152.52,1e-05,2]
[395168068,1764503643158,152.52,1.2e-05,2]
[395168069,1764503643482,152.52,1.4e-05,2]
[395168070,1764503643823,152.52,1.6e-05,2]
[395168071,1764503644096,152.52,1.8e-05,2]
[395168072,1764503644397,152.52,2e-05,2]
[395168073,1764503645686,152.49,1e-05,2]
[395168074,1764503647897,1500.0,7.657e-05,2]
[395168076,1764503656733,1500.0,7.657e-05,2]
[395168096,1764503672099,1500.0,7.657e-05,2]
[395168097,1764503680967,1500.0,7.657e-05,2]
[395168098,1764503682104,-761.70650409,7.734e-05,2]
[395168099,1764503684089,-174.9151614,7.734e-05,2]
[395168100,1764503686121,-292.75891407,7.734e-05,2]
[395168101,1764503697151,270.61942044,7.657e-05,2]
[395168102,1764503702226,151.74,1e-05,2]
[395168103,1764503702523,151.74,1e-05,2]
[395168104,1764503702899,151.74,1.1e-05,2]
[395168105,1764503703291,151.74,1.1e-05,2]
[395168106,1764503703599,151.74,1.1e-05,2]
[395168107,1764503703882,151.74,1.1e-05,2]
[395168108,1764503704223,151.74,1.2e-05,2]
[395168109,1764503704721,151.74,1.2e-05,2]
[395168110,1764503704866,151.74,1.2e-05,2]
[395168111,1764503704918,151.74,1.188e-05,2]
[395168112,1764503705123,151.74,1.3e-05,2]
[395168113,1764503705428,151.74,1.3e-05,2]
[395168114,1764503705728,151.74,1.3e-05,2]
[395168115,1764503706015,151.74,1.3e-05,2]
[395168118,1764503706662,151.74,1.4e-05,2]
[395168119,1764503706827,151.74,1.4e-05,2]
[395168120,1764503707250,151.74,1.4e-05,2]
[395168121,1764503707559,82.20057956,1.5e-05,2]
[395168122,1764503707585,69.53942044,1.5e-05,2]
[395168123,1764503708001,151.74,1.5e-05,2]
[395168124,1764503708463,151.74,1.5e-05,2]
[395168125,1764503708803,151.74,1.6e-05,2]
[395168126,1764503709140,151.74,1.6e-05,2]
[395168127,1764503710137,151.74,1.6e-05,2]
[395168128,1764503710474,151.74,1.6e-05,2]
[395168129,1764503710938,151.74,1.7e-05,2]
[395168130,1764503711125,151.74,1.7e-05,2]
[395168131,1764503711446,151.74,1.7e-05,2]
[395168132,1764503711803,151.74,1.8e-05,2]
[395168134,1764503712139,151.74,1.8e-05,2]
[395168135,1764503712510,151.74,1.8e-05,2]
[395168136,1764503712929,151.74,1.8e-05,2]
[395168137,1764503713175,151.74,1.9e-05,2]
[395168138,1764503713475,151.74,1.9e-05,2]
[395168139,1764503713781,151.74,1.9e-05,2]
[395168140,1764503714161,151.74,2e-05,2]
[395168141,1764503714502,151.74,2e-05,2]
[395168142,1764503714851,151.74,2e-05,2]
[395168143,1764503715176,151.74,2e-05,2]
[395168144,1764503715523,151.74,2.1e-05,2]
[395168145,1764503715887,151.74,2.1e-05,2]
[395168146,1764503716196,151.74,2.1e-05,2]
[395168147,1764503716536,151.74,2.2e-05,2]
[395168148,1764503717094,151.74,2.2e-05,2]
[395168149,1764503717227,151.74,2.2e-05,2]
[395168150,1764503717518,151.74,2.3e-05,2]
[395168151,1764503719783,270.61942044,7.657e-05,2]
[395168152,1764503728010,270.61942044,7.657e-05,2]
[395168153,1764503742961,270.61942044,7.657e-05,2]
[395168156,1764503751364,270.61942044,7.657e-05,2]
[395168161,1764503761245,-270.61942044,7.734e-05,2]
[395168162,1764503761274,-1200.0,7.811e-05,2]
[395168163,1764503761302,-1200.0,7.812e-05,2]
[395168164,1764503761329,-300.0,7.812e-05,2]
[395168165,1764503761356,-300.0,7.812e-05,2]
[395168166,1764503761386,-300.0,7.812e-05,2]
[395168167,1764503761414,-300.0,7.812e-05,2]
[395168168,1764503761444,-500.0,7.813e-05,2]
[395168169,1764503761473,-500.0,7.813e-05,2]
[395168170,1764503761802,-500.0,7.813e-05,2]
[395168171,1764503761832,-500.0,7.813e-05,2]
[395168172,1764503761861,-500.0,7.813e-05,2]
[395168173,1764503761889,-500.0,7.813e-05,2]
[395168174,1764503761917,-500.0,7.813e-05,2]
[395168175,1764503761946,-500.0,7.813e-05,2]
[395168176,1764503761974,-500.0,7.813e-05,2]
[395168177,1764503762003,-500.0,7.813e-05,2]
[395168178,1764503762030,-500.0,7.813e-05,2]
[395168179,1764503762057,-184.10249253,7.813e-05,2]
[395168180,1764503762086,-131.80501494,7.813e-05,2]
[395168181,1764503762231,-368.19498506,7.813e-05,2]
[395168182,1764503762272,-473.36409163,7.813e-05,2]
[395168183,1764503762319,-506.18468977,7.813e-05,2]
[395168184,1764503762373,-500.0,7.813e-05,2]
[395168185,1764503762406,-500.0,7.813e-05,2]
[395168186,1764503762436,-239.77461211,7.813e-05,2]
[395168187,1764503762464,-500.0,7.813e-05,2]
[395168188,1764503762492,-500.0,7.813e-05,2]
[395168189,1764503762706,-500.0,7.813e-05,2]
[395168190,1764503762738,-500.0,7.813e-05,2]
[395168191,1764503762768,-223.35474289,7.813e-05,2]
[395168194,1764503763193,-378.26375708,7.813e-05,2]
[395168195,1764503763384,167.4,1e-05,2]
[395168196,1764503763532,167.4,1.6e-05,2]
[395168197,1764503763690,167.4,2.3e-05,2]
[395168205,1764503769287,-545.14821052,7.695e-05,2]
[395168206,1764503769327,-150.0,7.716e-05,2]
[395168207,1764503769365,-545.14821052,7.773e-05,2]
[395168208,1764503769393,-300.0,7.811e-05,2]
[395168209,1764503775303,-4057.41707162,7.736e-05,2]
[395168211,1764503775879,-167.08528502,7.814e-05,2]
[395168212,1764503781350,-10000.01,7.814e-05,2]
[395168213,1764503792996,-3178.95749883,7.659e-05,2]
[395168214,1764503793025,-463.13750351,7.736e-05,2]
[395168215,1764503793059,-2715.81999532,7.736e-05,2]
[395168216,1764503796299,-500.0,7.813e-05,2]
[395168217,1764503796326,-428.27763561,7.813e-05,2]
[395168218,1764503796353,-324.80101094,7.813e-05,2]
[395168219,1764503796379,-230.22350894,7.814e-05,2]
[395168220,1764503796457,-7033.40568902,7.814e-05,2]
[395168222,1764503822615,151.84,1e-05,2]
[395168223,1764503822755,151.84,1e-05,2]
[395168224,1764503823089,151.84,1.1e-05,2]
[395168225,1764503823424,151.84,1.1e-05,2]
[395168226,1764503823850,151.84,1.1e-05,2]
[395168227,1764503824255,151.84,1.1e-05,2]
[395168228,1764503825147,151.84,1.2e-05,2]
[395168229,1764503825537,151.84,1.2e-05,2]
[395168231,1764503825869,151.84,1.2e-05,2]
[395168233,1764503826172,151.84,1.3e-05,2]
[395168234,1764503826262,1885.07560356,7.617e-05,2]
[395168236,1764503826462,151.84,1.3e-05,2]
[395168237,1764503826798,151.84,1.3e-05,2]
[395168239,1764503827191,151.84,1.4e-05,2]
[395168240,1764503827481,151.84,1.4e-05,2]
[395168242,1764503827808,151.84,1.4e-05,2]
[395168243,1764503828100,151.84,1.4e-05,2]
[395168245,1764503828468,151.84,1.5e-05,2]
[395168246,1764503828771,151.84,1.5e-05,2]
[395168247,1764503829108,151.84,1.5e-05,2]
[395168248,1764503829306,231.01166458,7.641e-05,2]
[395168249,1764503829409,151.84,1.6e-05,2]
[395168250,1764503829711,151.84,1.6e-05,2]
[395168254,1764503830674,151.84,1.6e-05,2]
[395168255,1764503831045,151.84,1.7e-05,2]
[395168256,1764503831376,151.84,1.7e-05,2]
[395168259,1764503831684,151.84,1.7e-05,2]
[395168261,1764503832165,151.84,1.7e-05,2]
[395168263,1764503832453,151.84,1.8e-05,2]
[395168264,1764503833030,151.84,1.8e-05,2]
[395168265,1764503833149,151.84,1.8e-05,2]
[395168266,1764503833495,151.84,1.9e-05,2]
[395168268,1764503833839,151.84,1.9e-05,2]
[395168269,1764503834328,151.84,1.9e-05,2]
[395168270,1764503834723,151.84,2e-05,2]
[395168271,1764503835171,151.84,2e-05,2]
[395168272,1764503835555,151.84,2e-05,2]
[395168273,1764503835939,151.84,2e-05,2]
[395168274,1764503836318,151.84,2.1e-05,2]
[395168275,1764503836685,151.84,2.1e-05,2]
[395168276,1764503836998,151.84,2.1e-05,2]
[395168277,1764503837306,151.84,2.2e-05,2]
[395168280,1764503837643,151.84,2.2e-05,2]
[395168283,1764503837997,151.84,2.2e-05,2]
[395168286,1764503838317,151.84,2.3e-05,2]
[395168331,1764503882334,152.49,1e-05,2]
[395168332,1764503882745,152.49,1e-05,2]
[395168333,1764503883069,152.49,1.1e-05,2]
[395168334,1764503883420,152.49,1.1e-05,2]
[395168335,1764503883782,152.49,1.2e-05,2]
[395168336,1764503884131,152.49,1.2e-05,2]
[395168337,1764503884486,152.49,1.3e-05,2]
[395168338,1764503884874,152.49,1.3e-05,2]
[395168339,1764503885178,152.49,1.4e-05,2]
[395168340,1764503885503,152.49,1.4e-05,2]
[395168341,1764503885810,152.49,1.5e-05,2]
[395168342,1764503886114,152.49,1.5e-05,2]
[395168343,1764503886494,152.49,1.6e-05,2]
[395168344,1764503886799,152.49,1.6e-05,2]
[395168345,1764503887264,152.49,1.6e-05,2]
[395168346,1764503887654,152.49,1.7e-05,2]
[395168347,1764503887977,152.49,1.7e-05,2]
[395168348,1764503888335,152.49,1.8e-05,2]
[395168351,1764503888648,152.49,1.8e-05,2]
[395168352,1764503888965,152.49,1.9e-05,2]
[395168353,1764503889259,152.49,1.9e-05,2]
[395168354,1764503889676,152.49,2e-05,2]
[395168355,1764503890159,152.49,2e-05,2]
[395168356,1764503890641,152.49,2.1e-05,2]
[395168357,1764503890978,152.49,2.1e-05,2]
[395168358,1764503891272,152.49,2.2e-05,2]
[395168359,1764503891810,152.49,2.2e-05,2]
[395168360,1764503893018,152.44,1e-05,2]
[395168361,1764503950100,5730.34,7.619e-05,2]
[395168362,1764503950123,1807.32502318,7.619e-05,2]
[395168366,1764503970771,251.41640589,7.658e-05,2]
[395168367,1764503972840,497.65741791,0.0001103,3]
[395168368,1764504007404,3575.96263364,7.658e-05,2]
[395168369,1764504025828,398.77616918,7.635e-05,2]
[395168370,1764504029860,215.0,7.658e-05,2]
[395168399,1764504052163,215.0,7.658e-05,2]
[395168400,1764504075085,215.0,7.658e-05,2]
[395168407,1764504098077,215.0,7.658e-05,2]
[395168413,1764504128614,215.0,7.658e-05,2]
[395168414,1764504129352,360.59477018,7.643e-05,2]
[395168416,1764504149669,282.6638121,6.847e-05,2]
[395168418,1764504152928,215.0,7.658e-05,2]
[395168419,1764504175224,215.0,7.658e-05,2]
[395168420,1764504177906,-215.0,7.735e-05,2]
[395168421,1764504177934,-534.24524631,7.774e-05,2]
[395168422,1764504177962,-300.0,7.812e-05,2]
[395168423,1764504177990,-1200.0,7.812e-05,2]
[395168424,1764504178018,-300.0,7.812e-05,2]
[395168425,1764504178045,-1200.0,7.812e-05,2]
[395168426,1764504178072,-300.0,7.813e-05,2]
[395168427,1764504178100,-300.0,7.813e-05,2]
[395168428,1764504178132,-500.0,7.813e-05,2]
[395168429,1764504178161,-95.61961162,7.813e-05,2]
[395168430,1764504178562,-110.28028414,7.813e-05,2]
[395168431,1764504178591,-211.9742591,7.813e-05,2]
[395168432,1764504178621,-500.0,7.813e-05,2]
[395168433,1764504178651,-500.0,7.813e-05,2]
[395168434,1764504178679,-474.8182324,7.813e-05,2]
[395168435,1764504178706,-500.0,7.813e-05,2]
[395168436,1764504178735,-500.0,7.813e-05,2]
[395168437,1764504178762,-384.48214288,7.813e-05,2]
[395168438,1764504178794,-476.19122139,7.813e-05,2]
[395168439,1764504179971,-6091.65912956,7.814e-05,2]
[395168440,1764504180003,-10000.01,7.814e-05,2]
[395168441,1764504180037,-10000.01,7.814e-05,2]
[395168442,1764504180097,-10000.01,7.814e-05,2]
[395168443,1764504184872,-300.0,7.813e-05,2]
[395168444,1764504184915,-9400.01,7.814e-05,2]
[395168445,1764504185084,-10000.01,7.814e-05,2]
[395168446,1764504185481,-10000.01,7.814e-05,2]
[395168447,1764504185652,-10000.01,7.814e-05,2]
[395168448,1764504185859,-10000.01,7.814e-05,2]
[395168449,1764504186255,-10000.01,7.814e-05,2]
[395168455,1764504243474,150.0,7.716e-05,2]
[395168456,1764504288465,2293.53365998,0.00010998,3]
[395168523,1764504390974,2100.0,7.658e-05,2]
[395168551,1764504398204,-300.0,7.735e-05,2]
[395168552,1764504398224,-223.52882575,7.735e-05,2]
[395168583,1764504413251,1576.47117425,7.658e-05,2]
[395168585,1764504429713,345.2838325,7.714e-05,2]
[395168590,1764504435644,300.0,7.657e-05,2]
[395168591,1764504436094,-300.0,7.734e-05,2]
[395168592,1764504436119,-5.79849673,7.735e-05,2]
[395168624,1764504458304,1270.67267752,7.658e-05,2]
[395168630,1764504480678,1200.0,7.657e-05,2]
[395168633,1764504503159,1500.0,7.657e-05,2]
[395168634,1764504519804,1557.58231573,7.714e-05,2]
[395168635,1764504519830,10000.01,7.714e-05,2]
[395168636,1764504519854,10000.01,7.714e-05,2]
[395168637,1764504519877,10000.01,7.714e-05,2]
[395168638,1764504519901,10000.01,7.714e-05,2]
[395168639,1764504519924,10000.01,7.714e-05,2]
[395168640,1764504519948,10000.01,7.714e-05,2]
[395168641,1764504519972,10000.01,7.714e-05,2]
[395168642,1764504519996,10000.01,7.714e-05,2]
[395168643,1764504520023,10000.01,7.714e-05,2]
[395168646,1764504552092,-533.33118093,7.485e-05,2]
[395168647,1764504553087,-292.4572286,7.485e-05,2]
[395168648,1764504554107,-57.47112066,7.485e-05,2]
[395168649,1764504554130,-505.78319334,7.561e-05,2]
[395168650,1764504561145,-348.10158331,7.561e-05,2]
[395168651,1764504562125,-29.37475354,7.561e-05,2]
[395168652,1764504562148,-186.53025019,7.637e-05,2]